bitfinex/quotes_SOLUSD_20220104
["timestamp","ask_amount","ask_price","bid_price","bid_amount"]
[1641322517763,30.5917278,167.85,167.71,31.06489329]
[1641322517961,2.61468818,167.84,167.71,31.06489329]
[1641322518361,3.11468818,167.84,167.71,31.06489329]
[1641322519163,33.95212595,167.85,167.71,31.06489329]
[1641322519363,3.36039815,167.86,167.72,13.955]
[1641322519563,3.36039815,167.86,167.74,17.21563037]
[1641322519964,3.36039815,167.86,167.75,34.21910864]
[1641322520165,2.74528408,167.89,167.75,34.21910864]
[1641322520366,34.17219273,167.89,167.75,34.21910864]
[1641322523373,34.43219273,167.89,167.75,34.21910864]
[1641322523771,37.79259088,167.89,167.75,34.21910864]
[1641322524475,37.79259088,167.89,167.75,33.95910864]
[1641322525475,10.08480473,167.88,167.75,33.95910864]
[1641322525874,10.58480473,167.88,167.75,33.95910864]
[1641322526174,2.86012052,167.86,167.75,33.95910864]
[1641322526378,3.36012052,167.86,167.75,33.95910864]
[1641322526577,34.95731292,167.85,167.75,33.95910864]
[1641322526876,35.45731292,167.85,167.75,33.95910864]
[1641322527075,35.71731292,167.85,167.75,33.95910864]
[1641322527478,6.72440658,167.84,167.75,33.95910864]
[1641322527680,2.88817278,167.83,167.75,33.95910864]
[1641322527881,3.38817278,167.83,167.75,33.95910864]
[1641322528081,1.68137773,167.81,167.75,33.95910864]
[1641322528280,28.7524957,167.8,167.75,33.95910864]
[1641322529681,30.43387343,167.8,167.75,33.95910864]
[1641322530108,30.43387343,167.8,167.75,34.21910864]
[1641322530509,1.68137773,167.79,167.75,34.21910864]
[1641322531106,30.43387343,167.8,167.75,34.21910864]
[1641322531506,1.68137773,167.8,167.75,34.21910864]
[1641322532609,1.68137773,167.8,167.76,30.63228152]
[1641322532809,1.68137773,167.82,167.76,30.63228152]
[1641322533011,1.68137773,167.82,167.76,30.89228152]
[1641322533411,2.7403396,167.83,167.76,30.89228152]
[1641322533611,2.7403396,167.83,167.76,0.26]
[1641322534011,2.7403396,167.83,167.75,41.05910864]
[1641322535320,4.42171733,167.83,167.75,41.05910864]
[1641322535512,4.42171733,167.83,167.75,41.31910864]
[1641322535913,4.42171733,167.83,167.75,33.95910864]
[1641322535914,4.92171733,167.83,167.75,33.95910864]
[1641322536213,24.73072243,167.81,167.66,29.18810097]
[1641322536414,2.7047906,167.8,167.66,29.18810097]
[1641322536813,3.2047906,167.8,167.66,29.18810097]
[1641322537414,2.85896846,167.77,167.66,29.18810097]
[1641322537616,2.85896846,167.77,167.66,36.28810097]
[1641322538018,33.59883413,167.77,167.66,36.54810097]
[1641322538616,2.85896846,167.77,167.66,36.54810097]
[1641322538818,2.85896846,167.77,167.66,36.28810097]
[1641322539015,3.35896846,167.77,167.66,36.28810097]
[1641322539315,2.85896846,167.77,167.66,36.28810097]
[1641322539918,2.85896846,167.77,167.66,37.73660883]
[1641322540118,2.85896846,167.77,167.66,37.99660883]
[1641322540921,29.16617556,167.8,167.66,37.99660883]
[1641322541323,29.16617556,167.8,167.66,48.1122392]
[1641322541922,2.14939873,167.8,167.66,48.1122392]
[1641322544327,1.68137773,167.84,167.66,48.1122392]
[1641322544924,1.68137773,167.84,167.66,112.90998969]
[1641322545127,1.68137773,167.84,167.7,8.9382]
[1641322545330,3.9245406,167.86,167.72,19.33844735]
[1641322545628,3.9245406,167.86,167.73,7.1]
[1641322545830,3.9245406,167.86,167.73,8.54850786]
[1641322546030,1.68137773,167.86,167.74,1.44850786]
[1641322546228,1.68137773,167.88,167.75,7.1]
[1641322546628,1.68137773,167.88,167.76,1.44850786]
[1641322546832,1.68137773,167.88,167.77,7.1]
[1641322546833,25.88269012,167.87,167.77,7.1]
[1641322547029,28.82539315,167.87,167.77,7.36]
[1641322547229,2.94270303,167.87,167.77,7.36]
[1641322548956,2.94270303,167.87,167.77,8.80850786]
[1641322550958,2.94270303,167.87,167.77,7.36]
[1641322551156,2.94270303,167.87,167.77,7.1]
[1641322553058,2.94270303,167.87,167.77,7.36]
[1641322554058,2.94270303,167.87,167.78,1.44850786]
[1641322554257,2.94270303,167.87,167.77,7.36]
[1641322555755,2.94270303,167.87,167.77,8.80850786]
[1641322557064,1.68137773,167.88,167.77,8.80850786]
[1641322557263,1.68137773,167.88,167.77,1.70850786]
[1641322557663,1.68137773,167.89,167.77,1.70850786]
[1641322557865,1.68137773,167.89,167.78,7.1]
[1641322558065,3.04707309,167.88,167.78,7.36]
[1641322558266,1.68137773,167.89,167.79,17.87626759]
[1641322558565,1.68137773,167.89,167.8,7.1]
[1641322558965,1.68137773,167.89,167.8,7.36]
[1641322559167,1.68137773,167.9,167.8,7.36]
[1641322559367,26.86167475,167.89,167.8,7.36]
[1641322560369,26.86167475,167.89,167.8,7.1]
[1641322562071,26.86167475,167.89,167.8,7.36]
[1641322565277,3.85090741,167.9,167.8,7.36]
[1641322565678,1.68137773,167.92,167.8,7.36]
[1641322565880,1.68137773,167.92,167.8,8.80850786]
[1641322566078,1.68137773,167.92,167.8,15.61950786]
[1641322566288,1.68137773,167.92,167.8,36.61471735]
[1641322566478,27.01544779,167.93,167.81,1.44850786]
[1641322566679,29.93162335,167.93,167.82,7.1]
[1641322567079,29.93162335,167.93,167.82,7.36]
[1641322567880,29.93162335,167.93,167.82,35.40897069]
[1641322568984,29.93162335,167.93,167.82,35.14897069]
[1641322569987,2.91617556,167.93,167.82,35.14897069]
[1641322570185,75.71077773,167.97,167.82,35.14897069]
[1641322570386,75.71077773,167.97,167.82,35.40897069]
[1641322570789,1.68137773,167.97,167.83,1.44850786]
[1641322570987,1.68137773,167.97,167.84,7.1]
[1641322571390,1.68137773,167.97,167.85,1.44850786]
[1641322571588,1.68137773,167.97,167.86,27.57757763]
[1641322571789,34.14587393,167.99,167.86,27.57757763]
[1641322571990,31.43304339,167.99,167.86,29.28608549]
[1641322572191,1.68137773,167.99,167.86,29.28608549]
[1641322572789,1.68137773,167.99,167.88,88.71]
[1641322572989,1.68137773,167.99,167.9,88.71]
[1641322573192,1.68137773,167.99,167.91,7.1]
[1641322573389,1.68137773,167.99,167.91,8.54850786]
[1641322573588,3.36039815,168.03,167.91,8.80850786]
[1641322573790,1.67900249,168.05,167.93,8.9262]
[1641322573992,1.67900249,168.05,167.94,7.1]
[1641322574189,1.67900249,168.05,167.94,8.54850786]
[1641322574390,1.67900249,168.05,167.95,1.44850786]
[1641322574593,2.43566243,168.07,167.96,7.1]
[1641322575016,2.43566243,168.07,167.96,8.80850786]
[1641322576415,153.0706,168.14,167.96,8.80850786]
[1641322576620,28.43974555,168.13,167.96,31.35480786]
[1641322577216,28.43974555,168.13,167.97,1.3433]
[1641322577417,31.15424657,168.13,167.98,7.1]
[1641322577915,31.65424657,168.13,167.98,7.1]
[1641322578115,8.16274383,168.12,167.98,7.1]
[1641322578416,2.97105024,168.1,167.98,7.1]
[1641322578816,27.39834205,168.09,167.98,7.1]
[1641322579319,27.89834205,168.09,167.98,7.1]
[1641322579717,3.02675687,168.07,167.98,7.36]
[1641322581118,24.0379439,168.09,167.98,7.36]
[1641322581319,24.0379439,168.09,167.99,1.44850786]
[1641322581520,24.0379439,168.09,167.99,8.80850786]
[1641322581718,24.0379439,168.09,167.99,7.36]
[1641322582118,27.28889013,168.09,167.99,7.36]
[1641322582918,27.28889013,168.09,167.99,7.1]
[1641322583125,3.36039815,168.07,167.99,7.1]
[1641322583327,2.63075489,168.06,167.99,7.1]
[1641322584325,2.13075489,168.06,167.99,7.1]
[1641322584928,24.0379439,168.09,167.99,7.1]
[1641322585128,24.0379439,168.09,167.99,7.36]
[1641322587735,2.32709288,168.12,167.99,7.36]
[1641322587935,2.82709288,168.12,167.99,8.80850786]
[1641322588733,27.64193328,168.12,167.99,8.80850786]
[1641322589134,27.14193328,168.12,167.99,8.80850786]
[1641322591337,27.14193328,168.12,167.99,7.36]
[1641322591937,27.64193328,168.12,167.99,7.36]
[1641322592940,27.64193328,168.12,167.99,0.26]
[1641322593144,27.14193328,168.12,167.99,0.26]
[1641322593342,27.14193328,168.12,167.98,25.92154042]
[1641322593543,27.14193328,168.12,167.99,7.1]
[1641322593945,27.14193328,168.12,167.99,7.36]
[1641322596042,27.14193328,168.12,167.99,7.1]
[1641322596243,27.64193328,168.12,167.99,7.1]
[1641322597442,27.64193328,168.12,167.99,7.36]
[1641322598543,27.64193328,168.12,167.99,9.36]
[1641322598949,27.90193328,168.12,167.99,9.1]
[1641322599244,27.64193328,168.12,167.99,9.1]
[1641322600044,27.14193328,168.12,167.99,9.1]
[1641322600248,27.14193328,168.12,167.99,9.36]
[1641322601746,1.44850786,168.11,167.99,9.1]
[1641322601945,1.44850786,168.11,167.99,2.0]
[1641322601946,1.94850786,168.11,167.99,2.0]
[1641322602349,1.44850786,168.1,167.99,2.0]
[1641322602547,2.16030865,168.09,167.99,2.0]
[1641322602945,29.46575414,168.08,167.99,2.0]
[1641322603348,29.96575414,168.08,167.99,2.0]
[1641322603752,75.0,168.07,167.92,7.1]
[1641322603951,3.05616982,168.06,167.92,7.1]
[1641322604450,3.81616982,168.06,167.92,7.1]
[1641322604650,5.26467768,168.06,167.92,7.1]
[1641322604857,5.00467768,168.06,167.92,7.1]
[1641322605050,3.31616982,168.06,167.92,7.1]
[1641322605252,3.81616982,168.06,167.92,7.1]
[1641322606252,8.54850786,168.05,167.86,395.3680072]
[1641322606454,87.41280786,168.05,167.85,7.1]
[1641322606654,1.44850786,168.04,167.85,7.1]
[1641322606857,9.53630858,168.03,167.85,7.1]
[1641322607060,26.60898186,168.02,167.85,7.1]
[1641322607257,33.70898186,168.02,167.85,7.1]
[1641322607463,34.46898186,168.02,167.85,7.36]
[1641322607664,35.91748972,168.02,167.85,7.36]
[1641322607866,41.96648972,168.02,167.85,7.36]
[1641322608063,41.96648972,168.02,167.85,7.1]
[1641322608881,39.27788787,168.02,167.85,7.1]
[1641322609488,39.27788787,168.02,167.85,7.36]
[1641322611188,6.71911131,168.01,167.85,0.26]
[1641322611387,2.50835826,167.99,167.81,7.1]
[1641322611588,7.1,167.98,167.81,7.1]
[1641322611886,9.04850786,167.98,167.76,430.9933556]
[1641322612085,2.96752985,167.96,167.76,430.9933556]
[1641322612287,7.1,167.95,167.77,26.14039064]
[1641322612486,8.80850786,167.95,167.77,26.14039064]
[1641322612688,1.44850786,167.94,167.77,26.14039064]
[1641322612991,24.26018621,167.92,167.77,26.14039064]
[1641322613387,24.76018621,167.92,167.76,430.9933556]
[1641322613587,25.02018621,167.92,167.76,7.36]
[1641322614187,25.02018621,167.92,167.74,70.2919]
[1641322614188,2.87006761,167.9,167.71,7.1]
[1641322614388,24.77858805,167.88,167.7,27.32572842]
[1641322614589,2.53440845,167.86,167.7,27.32572842]
[1641322614790,9.63440845,167.86,167.7,27.32572842]
[1641322614986,10.39440845,167.86,167.7,27.32572842]
[1641322615389,10.39440845,167.86,167.7,28.77423628]
[1641322615592,10.39440845,167.86,167.7,29.03423628]
[1641322615790,10.13440845,167.86,167.7,29.03423628]
[1641322615990,10.13440845,167.86,167.7,28.77423628]
[1641322616190,10.13440845,167.86,167.7,35.87423628]
[1641322616890,10.13440845,167.86,167.7,45.31933152]
[1641322617292,10.13440845,167.86,167.7,45.57933152]
[1641322617490,10.13440845,167.86,167.7,36.13423628]
[1641322618496,10.13440845,167.86,167.7,35.87423628]
[1641322619292,10.13440845,167.86,167.7,34.42572842]
[1641322620097,10.39440845,167.86,167.7,34.42572842]
[1641322620496,3.03440845,167.86,167.7,34.42572842]
[1641322620803,2.53440845,167.86,167.71,10.8936031]
[1641322620996,2.53440845,167.86,167.72,7.1]
[1641322621197,10.46039815,167.92,167.72,8.54850786]
[1641322621400,3.36039815,167.92,167.73,49.34190786]
[1641322621600,83.04409815,167.95,167.74,96.17049614]
[1641322621798,3.36039815,167.95,167.74,103.43011939]
[1641322621998,3.36039815,167.95,167.76,8.9351]
[1641322622199,30.20387317,167.94,167.77,34.2606]
[1641322622401,30.20387317,167.94,167.77,45.1542031]
[1641322622598,30.20387317,167.94,167.78,1.44850786]
[1641322622799,30.20387317,167.94,167.79,33.34450765]
[1641322623000,30.20387317,167.94,167.79,33.60450765]
[1641322623200,30.70387317,167.94,167.79,35.05301551]
[1641322623503,30.70387317,167.94,167.79,7.36]
[1641322623702,30.70387317,167.94,167.79,7.1]
[1641322623900,7.1,167.93,167.74,7.1]
[1641322624101,7.1,167.93,167.73,24.1793]
[1641322624302,7.86,167.93,167.73,24.1793]
[1641322624701,32.0774,167.93,167.72,80.1993]
[1641322624900,26.60599246,167.9,167.72,80.1993]
[1641322625104,33.96599246,167.9,167.72,82.8514]
[1641322625305,34.46599246,167.9,167.72,82.8514]
[1641322625504,34.46599246,167.9,167.72,92.29649524]
[1641322626306,34.20599246,167.9,167.72,92.29649524]
[1641322626508,34.20599246,167.9,167.72,92.55649524]
[1641322626707,34.20599246,167.9,167.73,1.44850786]
[1641322626905,34.20599246,167.9,167.73,8.54850786]
[1641322627107,34.46599246,167.9,167.73,7.1]
[1641322627515,34.46599246,167.9,167.74,23.2583646]
[1641322627711,34.46599246,167.9,167.73,8.54850786]
[1641322627910,34.46599246,167.9,167.73,7.1]
[1641322628307,34.46599246,167.9,167.73,7.36]
[1641322628711,34.46599246,167.9,167.74,31.13195521]
[1641322628908,34.20599246,167.9,167.74,1.44850786]
[1641322629109,34.20599246,167.9,167.74,0.26]
[1641322629509,34.20599246,167.9,167.73,7.36]
[1641322629909,34.20599246,167.9,167.74,30.67193603]
[1641322630109,34.20599246,167.9,167.74,32.38044389]
[1641322630310,26.60599246,167.9,167.75,7.1]
[1641322630509,26.60599246,167.9,167.75,8.80850786]
[1641322630910,26.60599246,167.9,167.76,1.44850786]
[1641322631112,2.15079155,167.9,167.76,8.80850786]
[1641322631413,2.15079155,167.9,167.77,1.44850786]
[1641322631811,2.15079155,167.9,167.77,0.26]
[1641322632411,2.15079155,167.9,167.76,7.36]
[1641322632811,2.15079155,167.9,167.77,1.44850786]
[1641322633012,2.15079155,167.9,167.78,17.85461229]
[1641322633410,2.15079155,167.9,167.78,25.21461229]
[1641322635935,2.15079155,167.9,167.78,7.36]
[1641322636940,2.15079155,167.9,167.78,7.1]
[1641322637138,2.65079155,167.9,167.78,7.1]
[1641322637738,2.65079155,167.9,167.75,1.3054]
[1641322638340,2.65079155,167.9,167.75,1.5654]
[1641322639041,2.15079155,167.9,167.76,8.54850786]
[1641322639241,2.15079155,167.9,167.77,17.68821712]
[1641322639442,2.15079155,167.9,167.78,7.1]
[1641322639943,15.5097498,167.98,167.79,1.44850786]
[1641322640142,15.5097498,167.98,167.8,7.1]
[1641322640342,7.1,167.98,167.81,2.5931]
[1641322640542,25.11558443,167.97,167.82,7.1]
[1641322640940,25.11558443,167.97,167.82,7.36]
[1641322641141,25.11558443,167.97,167.82,8.80850786]
[1641322642041,25.11558443,167.97,167.82,8.76242418]
[1641322642346,25.11558443,167.97,167.82,8.50242418]
[1641322644445,25.11558443,167.97,167.82,8.76242418]
[1641322644845,25.87558443,167.97,167.82,8.76242418]
[1641322645245,25.87558443,167.97,167.82,7.05391632]
[1641322645846,2.35207183,167.95,167.81,2.5931]
[1641322646047,2.61207183,167.95,167.81,2.5931]
[1641322646250,3.11207183,167.95,167.81,2.5931]
[1641322646449,3.11207183,167.95,167.81,2.8531]
[1641322648353,2.85207183,167.95,167.81,2.8531]
[1641322648553,2.35207183,167.95,167.81,2.8531]
[1641322649555,2.35207183,167.95,167.82,26.4813085]
[1641322649955,2.35207183,167.95,167.82,26.7413085]
[1641322650356,2.85207183,167.95,167.82,26.7413085]
[1641322650755,2.35207183,167.95,167.82,26.7413085]
[1641322651156,2.35207183,167.95,167.82,35.28981636]
[1641322653562,81.32889815,168.04,167.82,35.28981636]
[1641322653757,81.32889815,168.04,167.83,9.44509524]
[1641322653959,3.38039815,168.04,167.85,9.30463694]
[1641322654160,3.36039815,168.06,167.86,32.3451]
[1641322654462,25.64419265,168.05,167.87,100.15373982]
[1641322654658,25.64419265,168.05,167.88,7.1]
[1641322654959,25.64419265,168.05,167.88,8.80850786]
[1641322655160,25.64419265,168.05,167.89,1.44850786]
[1641322655458,25.64419265,168.05,167.91,26.4813085]
[1641322655659,25.64419265,168.05,167.92,7.1]
[1641322656060,25.64419265,168.05,167.92,7.36]
[1641322656661,25.64419265,168.05,167.92,7.1]
[1641322656964,26.14419265,168.05,167.92,7.1]
[1641322657162,26.40419265,168.05,167.92,7.1]
[1641322657563,26.14419265,168.05,167.92,7.1]
[1641322657963,26.40419265,168.05,167.92,7.1]
[1641322658366,34.95270051,168.05,167.88,24.5407]
[1641322658863,2.76001966,168.02,167.88,24.5407]
[1641322659064,3.02001966,168.02,167.88,24.5407]
[1641322659264,28.64675141,168.01,167.88,24.5407]
[1641322659469,29.40675141,168.01,167.88,24.5407]
[1641322660066,29.40675141,168.01,167.87,9.7148]
[1641322660266,30.85525927,168.01,167.84,7.1]
[1641322660466,2.26295808,167.99,167.82,110.0922]
[1641322660765,77.8392,167.99,167.82,110.0922]
[1641322660966,3.36039815,168.02,167.82,110.0922]
[1641322661193,1.44850786,168.04,167.82,110.0922]
[1641322661194,3.36039815,167.99,167.83,11.19791423]
[1641322661398,5.04935165,168.06,167.86,34.0]
[1641322661598,2.45595677,168.05,167.87,7.1]
[1641322661796,26.36023201,168.05,167.88,22.76752338]
[1641322661997,26.36023201,168.05,167.89,7.1]
[1641322662495,26.36023201,168.05,167.89,7.36]
[1641322662695,26.36023201,168.05,167.9,1.44850786]
[1641322662895,5.04935165,168.1,167.91,7.1]
[1641322663096,5.04935165,168.1,167.92,22.5159]
[1641322663398,5.04935165,168.1,167.93,7.1]
[1641322663597,5.04935165,168.1,167.93,8.80850786]
[1641322663795,23.87845898,168.09,167.94,2.78110786]
[1641322663995,23.87845898,168.09,167.95,7.1]
[1641322664396,23.87845898,168.09,167.96,24.08884492]
[1641322664598,23.87845898,168.09,167.96,31.44884492]
[1641322664995,24.13845898,168.09,167.96,31.44884492]
[1641322665396,2.42598779,168.08,167.96,31.44884492]
[1641322665597,2.42598779,168.08,167.96,32.89735278]
[1641322666799,2.42598779,168.08,167.96,8.80850786]
[1641322666997,2.42598779,168.08,167.96,7.36]
[1641322667799,2.42598779,168.08,167.96,31.45348243]
[1641322668202,2.42598779,168.08,167.96,7.36]
[1641322669299,2.42598779,168.08,167.96,31.02319048]
[1641322669999,2.42598779,168.08,167.96,7.36]
[1641322670899,2.42598779,168.08,167.96,7.1]
[1641322671100,2.68598779,168.08,167.96,7.1]
[1641322671499,2.92598779,168.08,167.96,7.1]
[1641322672102,2.92598779,168.08,167.97,16.55249918]
[1641322672503,2.92598779,168.08,167.97,16.81249918]
[1641322673305,2.42598779,168.08,167.97,16.81249918]
[1641322674207,2.42598779,168.08,167.97,0.26]
[1641322674608,2.42598779,168.08,167.96,7.36]
[1641322675811,2.68598779,168.08,167.96,7.36]
[1641322676408,3.18598779,168.08,167.96,7.36]
[1641322676808,3.18598779,168.08,167.94,1.3326]
[1641322677009,10.28598779,168.08,167.94,1.3326]
[1641322677209,10.28598779,168.08,167.92,22.5159]
[1641322677413,10.02598779,168.08,167.92,22.5159]
[1641322677610,87.98438779,168.08,167.92,23.96440786]
[1641322678109,87.98438779,168.08,167.92,24.22440786]
[1641322678509,88.24438779,168.08,167.92,24.22440786]
[1641322679510,88.24438779,168.08,167.92,1.70850786]
[1641322681114,88.24438779,168.08,167.92,8.80850786]
[1641322683020,88.24438779,168.08,167.92,7.36]
[1641322683416,88.24438779,168.08,167.87,7.1]
[1641322683616,46.3999,168.07,167.84,7.1]
[1641322683816,8.9362,168.04,167.84,7.1]
[1641322684018,2.85792252,168.02,167.84,7.1]
[1641322684220,23.13598778,168.0,167.85,1.44850786]
[1641322684415,23.63598778,168.0,167.85,1.44850786]
[1641322684615,2.91590454,167.99,167.85,1.44850786]
[1641322684819,2.91590454,167.99,167.87,16.91217752]
[1641322685020,2.91590454,167.99,167.87,17.17217752]
[1641322685217,2.91590454,167.99,167.87,18.62068538]
[1641322687218,2.91590454,167.99,167.87,1.70850786]
[1641322687445,3.41590454,167.99,167.87,1.70850786]
[1641322687623,3.41590454,167.99,167.87,1.44850786]
[1641322687819,3.41590454,167.99,167.86,8.4567]
[1641322689020,3.41590454,167.99,167.86,8.7167]
[1641322690921,3.41590454,167.99,167.86,8.4567]
[1641322691928,3.41590454,167.99,167.86,9.90520786]
[1641322692426,3.41590454,167.99,167.86,10.16520786]
[1641322693028,3.41590454,167.99,167.86,8.7167]
[1641322695953,3.41590454,167.99,167.86,10.16520786]
[1641322697954,3.41590454,167.99,167.86,8.7167]
[1641322698154,2.91590454,167.99,167.86,8.7167]
[1641322699052,2.91590454,167.99,167.86,8.4567]
[1641322699659,2.91590454,167.99,167.86,7.1]
[1641322699660,3.41590454,167.99,167.86,7.1]
[1641322699858,7.1,167.98,167.8,26.3219]
[1641322700055,7.1,167.98,167.8,1.3452]
[1641322700056,54.3232,167.98,167.8,1.3452]
[1641322700257,54.8232,167.98,167.8,1.3452]
[1641322700460,54.8232,167.98,167.78,7.1]
[1641322700659,1.62475578,167.97,167.79,25.50809015]
[1641322700859,2.44312168,167.95,167.79,25.50809015]
[1641322701158,98.10672168,167.95,167.78,7.1]
[1641322701359,7.1,167.94,167.78,7.1]
[1641322701558,7.36,167.94,167.78,7.1]
[1641322701759,7.86,167.94,167.78,7.1]
[1641322702159,29.02665016,167.93,167.78,7.1]
[1641322702362,29.52665016,167.93,167.78,7.1]
[1641322702559,9.6990455,167.92,167.76,1.2466]
[1641322702759,32.8457455,167.92,167.76,1.2466]
[1641322702961,33.6057455,167.92,167.76,1.2466]
[1641322703559,33.6057455,167.92,167.75,1.292]
[1641322704060,42.5482455,167.92,167.75,1.292]
[1641322704260,1.62475578,167.91,167.75,1.292]
[1641322704462,2.88182166,167.89,167.75,1.292]
[1641322704661,76.43912166,167.89,167.75,1.292]
[1641322704862,77.19912166,167.89,167.75,1.292]
[1641322706263,77.19912166,167.89,167.75,1.552]
[1641322706461,77.19912166,167.89,167.75,1.292]
[1641322706963,102.12682166,167.89,167.75,1.292]
[1641322707864,7.1,167.88,167.75,1.292]
[1641322708061,7.36,167.88,167.75,1.552]
[1641322708264,7.86,167.88,167.75,1.552]
[1641322708462,7.86,167.88,167.73,1.2444]
[1641322708662,7.86,167.88,167.7,2.6644]
[1641322708862,22.3848,167.87,167.7,1.3467]
[1641322709062,9.48750452,167.86,167.67,1.44850786]
[1641322709263,31.98602042,167.86,167.65,466.0138122]
[1641322709462,46.8196,167.85,167.65,466.0138122]
[1641322709662,7.1,167.84,167.65,466.0138122]
[1641322709864,3.03955481,167.83,167.65,466.0138122]
[1641322710070,1.62475578,167.81,167.65,466.0138122]
[1641322710268,10.01166586,167.8,167.65,466.0138122]
[1641322710469,26.130254,167.79,167.65,466.0138122]
[1641322710669,7.1,167.78,167.63,1.44850786]
[1641322710871,2.22455092,167.77,167.63,1.44850786]
[1641322711068,2.22455092,167.77,167.64,7.1]
[1641322711470,2.22455092,167.77,167.65,1.44850786]
[1641322711869,2.72455092,167.77,167.65,0.26]
[1641322712070,2.22455092,167.77,167.62,39.70041213]
[1641322712271,2.22455092,167.77,167.65,1.44850786]
[1641322712474,2.22455092,167.77,167.65,1.70850786]
[1641322713073,2.48455092,167.77,167.65,1.70850786]
[1641322713271,2.48455092,167.77,167.65,0.26]
[1641322713474,2.48455092,167.77,167.62,31.29671213]
[1641322713697,7.1,167.76,167.62,31.29671213]
[1641322713872,7.6,167.76,167.62,31.29671213]
[1641322714071,7.86,167.76,167.62,31.29671213]
[1641322714371,7.86,167.76,167.62,31.03671213]
[1641322714972,7.36,167.76,167.6,77.9565]
[1641322715173,7.36,167.76,167.61,24.4855]
[1641322717577,7.36,167.76,167.61,24.7455]
[1641322718877,7.36,167.76,167.58,104.1689]
[1641322719076,2.61139495,167.74,167.58,104.1689]
[1641322719379,8.54850786,167.73,167.55,92.7]
[1641322719677,8.80850786,167.73,167.55,92.7]
[1641322719878,31.29266326,167.72,167.56,25.42170024]
[1641322720082,2.94338424,167.7,167.56,25.42170024]
[1641322720383,10.54338424,167.7,167.56,25.42170024]
[1641322720584,10.80338424,167.7,167.56,25.42170024]
[1641322721908,10.80338424,167.7,167.54,1.2387]
[1641322722112,78.5027,167.69,167.54,1.2387]
[1641322722312,2.38734524,167.67,167.52,1.2823]
[1641322722512,7.1,167.66,167.52,1.2823]
[1641322722909,30.9862986,167.65,167.52,1.2823]
[1641322723109,2.82077795,167.64,167.52,1.2823]
[1641322723711,3.32077795,167.64,167.52,2.73080786]
[1641322724210,2.82077795,167.64,167.52,2.73080786]
[1641322724614,3.08077795,167.64,167.52,1.2823]
[1641322724814,3.58077795,167.64,167.52,1.2823]
[1641322725011,3.32077795,167.64,167.52,1.2823]
[1641322725211,2.82077795,167.64,167.52,1.2823]
[1641322726011,2.82077795,167.64,167.52,1.5423]
[1641322726219,2.82077795,167.64,167.52,2.99080786]
[1641322727415,2.82077795,167.64,167.52,1.5423]
[1641322728615,2.82077795,167.64,167.52,2.99080786]
[1641322729217,2.82077795,167.64,167.52,1.5423]
[1641322731817,3.32077795,167.64,167.52,1.5423]
[1641322732016,3.32077795,167.64,167.52,2.99080786]
[1641322732215,2.82077795,167.64,167.52,2.99080786]
[1641322732817,80.12745578,167.69,167.53,7.1]
[1641322733015,80.12745578,167.69,167.54,22.5545]
[1641322733216,78.5027,167.69,167.55,8.3303]
[1641322733416,1.62475578,167.7,167.55,9.77880786]
[1641322733616,1.62475578,167.7,167.56,23.3121]
[1641322733816,29.12212006,167.69,167.56,44.85410704]
[1641322734019,29.12212006,167.69,167.56,43.66559918]
[1641322734217,29.12212006,167.69,167.56,23.5721]
[1641322735016,29.62212006,167.69,167.56,23.5721]
[1641322735416,29.88212006,167.69,167.56,23.5721]
[1641322736116,29.88212006,167.69,167.56,24.8916]
[1641322736318,29.62212006,167.69,167.56,24.8916]
[1641322737318,29.12212006,167.69,167.56,24.8916]
[1641322737920,29.62212006,167.69,167.56,24.8916]
[1641322738521,29.88212006,167.69,167.56,24.8916]
[1641322739223,29.62212006,167.69,167.56,24.8916]
[1641322739826,29.12212006,167.69,167.56,24.8916]
[1641322740021,29.12212006,167.69,167.57,8.54850786]
[1641322740223,29.12212006,167.69,167.57,8.80850786]
[1641322740422,2.60062513,167.69,167.58,1.44850786]
[1641322740624,2.60062513,167.69,167.58,8.54850786]
[1641322740822,2.60062513,167.69,167.56,24.6316]
[1641322741024,2.60062513,167.69,167.56,23.807454]
[1641322741623,2.60062513,167.69,167.56,30.907454]
[1641322742025,2.60062513,167.69,167.56,1.5795]
[1641322742226,8.54850786,167.68,167.56,0.26]
[1641322742425,33.40590786,167.68,167.56,0.26]
[1641322742625,33.66590786,167.68,167.52,1.5423]
[1641322742825,33.66590786,167.68,167.52,1.2823]